[Event "*** Titled Tuesday Blitz"]
[Site "Chess.com"]
[Date "2020.11.10"]
[Round "7"]
[White "maxip32"]
[Black "horripile"]
[Result "0-1"]
[WhiteElo "2429"]
[BlackElo "2677"]
[TimeControl "180+1"]
[EndTime "11:20:30 PST"]
[Termination "horripile won on time"]

1. e4 {[%clk 0:02:58.4]} 1... c5 {[%clk 0:02:59.4]} 2. Nf3 {[%clk 0:02:57.1]}
2... Nc6 {[%clk 0:02:59.9]} 3. d4 {[%clk 0:02:55.8]} 3... cxd4 {[%clk
0:03:00.8]} 4. Nxd4 {[%clk 0:02:56.3]} 4... e6 {[%clk 0:03:01]} 5. Nc3 {[%clk
0:02:53]} 5... Qc7 {[%clk 0:03:00.9]} 6. Be3 {[%clk 0:02:53.3]} 6... a6 {[%clk
0:03:00.9]} 7. Qf3 {[%clk 0:02:53.8]} 7... Nf6 {[%clk 0:02:59.9]} 8. O-O-O
{[%clk 0:02:53.5]} 8... Be7 {[%clk 0:02:59.6]} 9. Be2 {[%clk 0:02:47.9]} 9... h5
{[%clk 0:02:50.9]} 10. Qg3 {[%clk 0:02:44.1]} 10... d6 {[%clk 0:02:42.9]} 11. f4
{[%clk 0:02:28.8]} 11... g6 {[%clk 0:02:31.1]} 12. Kb1 {[%clk 0:02:21.3]} 12...
h4 {[%clk 0:02:30]} 13. Qf3 {[%clk 0:02:17.8]} 13... Bd7 {[%clk 0:02:29.6]} 14.
Qf2 {[%clk 0:01:48]} 14... Rc8 {[%clk 0:02:22.3]} 15. Bf3 {[%clk 0:01:37.3]}
15... b5 {[%clk 0:02:19.2]} 16. Nxc6 {[%clk 0:01:32.6]} 16... Bxc6 {[%clk
0:02:18.2]} 17. a3 {[%clk 0:01:32.5]} 17... a5 {[%clk 0:02:15.5]} 18. Bb6 {[%clk
0:01:31.1]} 18... Qb7 {[%clk 0:02:13.6]} 19. Bxa5 {[%clk 0:01:29.1]} 19... Nxe4
{[%clk 0:02:13.2]} 20. Nxe4 {[%clk 0:01:27.3]} 20... Bxe4 {[%clk 0:02:13.1]} 21.
Qd4 {[%clk 0:00:50.4]} 21... Bxf3 {[%clk 0:02:12.7]} 22. gxf3 {[%clk 0:00:14.6]}
22... Rh5 {[%clk 0:02:12.2]} 23. Bb4 {[%clk 0:00:11.7]} 23... Rc6 {[%clk
0:02:09.5]} 24. Qe3 {[%clk 0:00:04]} 24... d5 {[%clk 0:02:05.4]} 25. Rhg1 {[%clk
0:00:03.9]} 25... Bxb4 {[%clk 0:02:04.6]} 26. axb4 {[%clk 0:00:04.8]} 26... Ra6
{[%clk 0:02:03.3]} 27. c3 {[%clk 0:00:04.8]} 27... Qc7 {[%clk 0:01:52.9]} 28.
Kc2 {[%clk 0:00:03.4]} 28... Rc6 {[%clk 0:01:49.8]} 29. Ra1 {[%clk 0:00:02]}
29... Kf8 {[%clk 0:01:40.4]} 0-1

[Event "*** Titled Tuesday Blitz"]
[Site "Chess.com"]
[Date "2020.11.10"]
[Round "7"]
[White "denispopov"]
[Black "penguingm1"]
[Result "0-1"]
[WhiteElo "1859"]
[BlackElo "2843"]
[TimeControl "180+1"]
[EndTime "11:20:36 PST"]
[Termination "penguingm1 won by resignation"]

1. e4 {[%clk 0:03:00.9]} 1... e5 {[%clk 0:02:55.8]} 2. Nf3 {[%clk 0:03:00.7]}
2... Nc6 {[%clk 0:02:56.1]} 3. Bc4 {[%clk 0:03:01.1]} 3... Bc5 {[%clk
0:02:51.3]} 4. O-O {[%clk 0:03:01.3]} 4... Nf6 {[%clk 0:02:51.2]} 5. d4 {[%clk
0:03:01.8]} 5... Bxd4 {[%clk 0:02:51.5]} 6. Nxd4 {[%clk 0:03:01.5]} 6... Nxd4
{[%clk 0:02:52.4]} 7. Bg5 {[%clk 0:03:01.6]} 7... d6 {[%clk 0:02:52.5]} 8. f4
{[%clk 0:03:01.3]} 8... Qe7 {[%clk 0:02:53.1]} 9. Nc3 {[%clk 0:02:34.5]} 9... c6
{[%clk 0:02:25.3]} 10. f5 {[%clk 0:02:23.1]} 10... Bd7 {[%clk 0:00:59.1]} 11. a4
{[%clk 0:02:18.3]} 11... d5 {[%clk 0:00:46.7]} 12. Bd3 {[%clk 0:02:06.2]} 12...
Qd6 {[%clk 0:00:44]} 13. Qe1 {[%clk 0:01:51.4]} 13... O-O-O {[%clk 0:00:43.1]}
14. Qh4 {[%clk 0:01:37.5]} 14... Kb8 {[%clk 0:00:36.6]} 15. a5 {[%clk
0:01:35.7]} 15... h6 {[%clk 0:00:34.4]} 16. Bxf6 {[%clk 0:01:35.2]} 16... gxf6
{[%clk 0:00:34.2]} 17. a6 {[%clk 0:01:29.6]} 17... b6 {[%clk 0:00:34.4]} 18. Nd1
{[%clk 0:01:23.8]} 18... dxe4 {[%clk 0:00:28.2]} 19. Bxe4 {[%clk 0:01:24.7]}
19... Nb5 {[%clk 0:00:21.7]} 20. Nf2 {[%clk 0:01:19]} 20... h5 {[%clk
0:00:20.7]} 21. Rfd1 {[%clk 0:01:15.5]} 21... Qe7 {[%clk 0:00:21.1]} 22. Rxd7
{[%clk 0:01:08.7]} 22... Qxd7 {[%clk 0:00:17.8]} 23. Qxf6 {[%clk 0:01:08.6]}
23... Qc7 {[%clk 0:00:17.3]} 24. Bxc6 {[%clk 0:01:05.4]} 24... Nd4 {[%clk
0:00:15.9]} 0-1

[Event "*** Titled Tuesday Blitz"]
[Site "Chess.com"]
[Date "2020.11.10"]
[Round "7"]
[White "GukeshDommaraju"]
[Black "Promacherr"]
[Result "1-0"]
[WhiteElo "2873"]
[BlackElo "2722"]
[TimeControl "180+1"]
[EndTime "11:20:46 PST"]
[Termination "GukeshDommaraju won by resignation"]

1. d4 {[%clk 0:03:00.9]} 1... d5 {[%clk 0:02:59]} 2. Nf3 {[%clk 0:03:00.9]} 2...
Nf6 {[%clk 0:02:58.9]} 3. Bf4 {[%clk 0:03:00.7]} 3... e6 {[%clk 0:02:58.7]} 4.
e3 {[%clk 0:03:00.9]} 4... Bd6 {[%clk 0:02:59]} 5. Nbd2 {[%clk 0:03:00.9]} 5...
O-O {[%clk 0:02:58.7]} 6. Bd3 {[%clk 0:03:00.9]} 6... c5 {[%clk 0:02:58.8]} 7.
dxc5 {[%clk 0:03:01.3]} 7... Bxc5 {[%clk 0:02:58.8]} 8. O-O {[%clk 0:03:00.9]}
8... Nc6 {[%clk 0:02:58.9]} 9. c4 {[%clk 0:02:58.2]} 9... dxc4 {[%clk
0:02:48.8]} 10. Nxc4 {[%clk 0:02:57.3]} 10... b6 {[%clk 0:02:44.3]} 11. a3
{[%clk 0:02:54.5]} 11... a5 {[%clk 0:02:41.9]} 12. Qe2 {[%clk 0:02:51.5]} 12...
Bb7 {[%clk 0:02:40.2]} 13. Rfd1 {[%clk 0:02:50.7]} 13... Qe7 {[%clk 0:02:40.4]}
14. Rac1 {[%clk 0:02:28.5]} 14... h6 {[%clk 0:02:40.1]} 15. Nd6 {[%clk
0:02:21.3]} 15... Nh5 {[%clk 0:02:22.5]} 16. Nxb7 {[%clk 0:02:12.2]} 16... Qxb7
{[%clk 0:02:21.9]} 17. Be4 {[%clk 0:02:08.4]} 17... Rac8 {[%clk 0:02:19.4]} 18.
b4 {[%clk 0:01:49.8]} 18... axb4 {[%clk 0:02:20.3]} 19. axb4 {[%clk 0:01:49.9]}
19... Bxb4 {[%clk 0:02:20.5]} 20. Rxc6 {[%clk 0:01:48.6]} 20... Rxc6 {[%clk
0:02:21.4]} 21. Ne5 {[%clk 0:01:49]} 21... Nxf4 {[%clk 0:01:50.6]} 22. exf4
{[%clk 0:01:49.9]} 22... Rfc8 {[%clk 0:01:50.4]} 23. Qf3 {[%clk 0:01:31.1]}
23... Bc5 {[%clk 0:00:42.2]} 24. Bxc6 {[%clk 0:01:24.7]} 24... Qa7 {[%clk
0:00:42.4]} 25. g3 {[%clk 0:01:21.8]} 25... Qa2 {[%clk 0:00:41.7]} 26. Bd7
{[%clk 0:01:13.1]} 26... Rd8 {[%clk 0:00:37.8]} 27. Kg2 {[%clk 0:01:09.2]} 27...
g6 {[%clk 0:00:22.8]} 28. Bxe6 {[%clk 0:01:06.1]} 1-0

[Event "*** Titled Tuesday Blitz"]
[Site "Chess.com"]
[Date "2020.11.10"]
[Round "7"]
[White "nicoderboss24"]
[Black "djano"]
[Result "1/2-1/2"]
[WhiteElo "2262"]
[BlackElo "2483"]
[TimeControl "180+1"]
[EndTime "11:20:49 PST"]
[Termination "Game drawn by repetition"]

1. e4 {[%clk 0:02:54.8]} 1... c6 {[%clk 0:02:59.5]} 2. d4 {[%clk 0:02:53.5]}
2... g6 {[%clk 0:02:59.8]} 3. Nf3 {[%clk 0:02:52.6]} 3... Bg7 {[%clk 0:03:00.2]}
4. c4 {[%clk 0:02:52.7]} 4... d6 {[%clk 0:02:56.1]} 5. Nc3 {[%clk 0:02:52.9]}
5... Nf6 {[%clk 0:02:56.4]} 6. h3 {[%clk 0:02:52.5]} 6... O-O {[%clk 0:02:56.4]}
7. Be3 {[%clk 0:02:52.7]} 7... Nbd7 {[%clk 0:02:51.1]} 8. Qd2 {[%clk 0:02:52]}
8... e5 {[%clk 0:02:50.9]} 9. Bh6 {[%clk 0:02:49.3]} 9... exd4 {[%clk
0:02:43.5]} 10. Nxd4 {[%clk 0:02:49.1]} 10... Re8 {[%clk 0:02:42.2]} 11. Bxg7
{[%clk 0:02:48.3]} 11... Nxe4 {[%clk 0:02:28.8]} 12. Nxe4 {[%clk 0:02:45.9]}
12... Rxe4+ {[%clk 0:02:29.7]} 13. Be2 {[%clk 0:02:43.8]} 13... Kxg7 {[%clk
0:02:29.3]} 14. O-O {[%clk 0:02:43.7]} 14... Nf6 {[%clk 0:02:25.4]} 15. Bf3
{[%clk 0:02:40.5]} 15... Re8 {[%clk 0:02:21.1]} 16. Rfe1 {[%clk 0:02:33.4]}
16... Rxe1+ {[%clk 0:02:15.2]} 17. Rxe1 {[%clk 0:02:34.3]} 17... Bd7 {[%clk
0:02:14.8]} 18. Qb4 {[%clk 0:02:28.3]} 18... Qc7 {[%clk 0:01:17.4]} 19. Qc3
{[%clk 0:02:20.9]} 19... Re8 {[%clk 0:01:17.4]} 20. Rxe8 {[%clk 0:02:16.4]}
20... Bxe8 {[%clk 0:01:18.3]} 21. g4 {[%clk 0:02:15.1]} 21... h6 {[%clk
0:01:13.9]} 22. h4 {[%clk 0:02:05.7]} 22... Kg8 {[%clk 0:00:57.7]} 23. Nf5
{[%clk 0:01:50.1]} 23... gxf5 {[%clk 0:00:51.1]} 24. Qxf6 {[%clk 0:01:49.6]}
24... fxg4 {[%clk 0:00:49.3]} 25. Bxg4 {[%clk 0:01:49.2]} 25... Qa5 {[%clk
0:00:31.7]} 26. Qxh6 {[%clk 0:01:30.7]} 26... Qe1+ {[%clk 0:00:31.4]} 27. Kg2
{[%clk 0:01:17.7]} 27... Qe4+ {[%clk 0:00:31.4]} 28. Kh3 {[%clk 0:01:14.2]}
28... Qh1+ {[%clk 0:00:30.7]} 29. Kg3 {[%clk 0:01:13]} 29... Qg1+ {[%clk
0:00:30.6]} 30. Kh3 {[%clk 0:01:13.3]} 30... Qh1+ {[%clk 0:00:25.2]} 31. Kg3
{[%clk 0:01:12.3]} 31... Qg1+ {[%clk 0:00:25.4]} 32. Kh3 {[%clk 0:01:10.9]}
32... Qh1+ {[%clk 0:00:22.2]} 1/2-1/2

[Event "*** Titled Tuesday Blitz"]
[Site "Chess.com"]
[Date "2020.11.10"]
[Round "7"]
[White "IANOV0007"]
[Black "AlexSuv"]
[Result "0-1"]
[WhiteElo "2447"]
[BlackElo "2590"]
[TimeControl "180+1"]
[EndTime "11:20:55 PST"]
[Termination "AlexSuv won on time"]

1. Nf3 {[%clk 0:03:00.9]} 1... d5 {[%clk 0:02:59.1]} 2. g3 {[%clk 0:03:00.4]}
2... c6 {[%clk 0:02:58.9]} 3. Bg2 {[%clk 0:03:00.2]} 3... Nf6 {[%clk 0:02:59.7]}
4. d3 {[%clk 0:03:00.1]} 4... Bg4 {[%clk 0:03:00.2]} 5. Nbd2 {[%clk 0:02:58.7]}
5... Nbd7 {[%clk 0:03:00.1]} 6. O-O {[%clk 0:02:58.4]} 6... e6 {[%clk
0:03:00.1]} 7. h3 {[%clk 0:02:57.1]} 7... Bh5 {[%clk 0:02:59.8]} 8. g4 {[%clk
0:02:57.1]} 8... Bg6 {[%clk 0:02:59.6]} 9. Nh4 {[%clk 0:02:57.2]} 9... e5 {[%clk
0:02:55.9]} 10. e3 {[%clk 0:02:53]} 10... Bd6 {[%clk 0:02:55.6]} 11. Qe2 {[%clk
0:02:50.7]} 11... O-O {[%clk 0:02:55.3]} 12. Nxg6 {[%clk 0:02:42.4]} 12... hxg6
{[%clk 0:02:53.5]} 13. e4 {[%clk 0:02:37.6]} 13... Nc5 {[%clk 0:02:51.7]} 14. g5
{[%clk 0:02:20.3]} 14... Nh5 {[%clk 0:02:51.1]} 15. exd5 {[%clk 0:02:10.6]}
15... Nf4 {[%clk 0:02:44.2]} 16. Qg4 {[%clk 0:02:07.9]} 16... cxd5 {[%clk
0:02:42.8]} 17. Nb3 {[%clk 0:02:03.2]} 17... Nce6 {[%clk 0:02:39.9]} 18. h4
{[%clk 0:01:56.4]} 18... Rc8 {[%clk 0:02:39.4]} 19. c3 {[%clk 0:01:49.4]} 19...
Nxg2 {[%clk 0:02:32.9]} 20. Qxg2 {[%clk 0:01:47.4]} 20... Bc5 {[%clk 0:02:29.2]}
21. Bd2 {[%clk 0:01:42]} 21... Bb6 {[%clk 0:02:28.4]} 22. Rae1 {[%clk
0:01:41.3]} 22... Qd6 {[%clk 0:02:28.9]} 23. Qg3 {[%clk 0:01:39]} 23... Nf4
{[%clk 0:02:28.1]} 24. Bxf4 {[%clk 0:01:37.2]} 24... exf4 {[%clk 0:02:29]} 25.
Qf3 {[%clk 0:01:36.9]} 25... Rfe8 {[%clk 0:02:29.4]} 26. d4 {[%clk 0:01:35.6]}
26... a5 {[%clk 0:02:20.3]} 27. a4 {[%clk 0:01:25.9]} 27... f6 {[%clk 0:02:16]}
28. Kh2 {[%clk 0:01:16.4]} 28... fxg5 {[%clk 0:02:12.8]} 29. hxg5 {[%clk
0:01:15.5]} 29... Kf7 {[%clk 0:02:13.4]} 30. Kg2 {[%clk 0:01:00.4]} 30... Bc7
{[%clk 0:02:01.7]} 31. Nc5 {[%clk 0:00:56.2]} 31... b6 {[%clk 0:01:54.1]} 32.
Nd3 {[%clk 0:00:54.6]} 32... Qd7 {[%clk 0:01:54.2]} 33. Nxf4 {[%clk 0:00:39.1]}
33... Bxf4 {[%clk 0:01:48.5]} 34. Qxf4+ {[%clk 0:00:37.7]} 34... Kg8 {[%clk
0:01:49.4]} 35. Qf3 {[%clk 0:00:19.7]} 35... Rf8 {[%clk 0:01:47.4]} 36. Qd1
{[%clk 0:00:13.4]} 36... Rce8 {[%clk 0:01:37.8]} 0-1

[Event "*** Titled Tuesday Blitz"]
[Site "Chess.com"]
[Date "2020.11.10"]
[Round "7"]
[White "ChessWarrior3"]
[Black "swisspower96"]
[Result "0-1"]
[WhiteElo "2077"]
[BlackElo "2549"]
[TimeControl "180+1"]
[EndTime "11:20:56 PST"]
[Termination "swisspower96 won by resignation"]

1. e4 {[%clk 0:03:00.9]} 1... c5 {[%clk 0:02:50.7]} 2. Nf3 {[%clk 0:03:00]} 2...
Nc6 {[%clk 0:02:50.3]} 3. d4 {[%clk 0:02:58.9]} 3... cxd4 {[%clk 0:02:50.6]} 4.
Nxd4 {[%clk 0:02:59.7]} 4... Nf6 {[%clk 0:02:49.7]} 5. Nc3 {[%clk 0:02:57.9]}
5... e5 {[%clk 0:02:49.4]} 6. Ndb5 {[%clk 0:02:55.3]} 6... d6 {[%clk 0:02:49.2]}
7. Bg5 {[%clk 0:02:55.4]} 7... a6 {[%clk 0:02:47.9]} 8. Na3 {[%clk 0:02:54.2]}
8... b5 {[%clk 0:02:48]} 9. Bxf6 {[%clk 0:02:52]} 9... gxf6 {[%clk 0:02:47.2]}
10. Nd5 {[%clk 0:02:50.3]} 10... f5 {[%clk 0:02:43.7]} 11. Bd3 {[%clk
0:02:45.7]} 11... Be6 {[%clk 0:02:38.8]} 12. O-O {[%clk 0:02:43.6]} 12... Bg7
{[%clk 0:02:33.3]} 13. Re1 {[%clk 0:02:42.9]} 13... Bxd5 {[%clk 0:02:31.2]} 14.
exd5 {[%clk 0:02:42.5]} 14... Ne7 {[%clk 0:02:31.5]} 15. c3 {[%clk 0:02:32.3]}
15... O-O {[%clk 0:02:27.7]} 16. Qh5 {[%clk 0:02:30]} 16... Qd7 {[%clk
0:02:17.8]} 17. Rad1 {[%clk 0:02:25.5]} 17... e4 {[%clk 0:02:17.4]} 18. Bf1
{[%clk 0:02:23.4]} 18... Ng6 {[%clk 0:02:15.9]} 19. g3 {[%clk 0:02:22.8]} 19...
Rae8 {[%clk 0:02:14.2]} 20. Bh3 {[%clk 0:02:22.1]} 20... Re5 {[%clk 0:02:09.3]}
21. f4 {[%clk 0:02:14.3]} 21... exf3 {[%clk 0:01:47.5]} 22. Rxe5 {[%clk
0:02:12.1]} 22... Nxe5 {[%clk 0:01:30.1]} 23. Bxf5 {[%clk 0:02:11.3]} 23... Qa7+
{[%clk 0:01:30]} 24. Kf1 {[%clk 0:02:02.8]} 24... h6 {[%clk 0:01:30]} 25. Be4
{[%clk 0:01:58.9]} 25... Qe3 {[%clk 0:01:29]} 26. Re1 {[%clk 0:01:55.2]} 26...
Qd2 {[%clk 0:01:21.4]} 27. Bxf3 {[%clk 0:01:50.6]} 27... Qxb2 {[%clk 0:01:18.7]}
28. Rxe5 {[%clk 0:01:41.2]} 28... dxe5 {[%clk 0:01:13.8]} 29. Qf5 {[%clk
0:01:36.3]} 29... Qxa3 {[%clk 0:01:13]} 30. Be4 {[%clk 0:01:35.9]} 30... Qc1+
{[%clk 0:01:12.2]} 31. Kg2 {[%clk 0:01:34.3]} 31... Qd2+ {[%clk 0:01:10.7]} 32.
Kh3 {[%clk 0:01:33.2]} 32... Rd8 {[%clk 0:01:10.8]} 33. a4 {[%clk 0:01:26.7]}
33... bxa4 {[%clk 0:01:07]} 34. c4 {[%clk 0:01:26.5]} 34... a3 {[%clk
0:01:07.1]} 35. Bb1 {[%clk 0:01:23.8]} 35... a2 {[%clk 0:01:04.8]} 36. Bxa2
{[%clk 0:01:20]} 36... Qxa2 {[%clk 0:01:05.7]} 37. c5 {[%clk 0:01:19]} 37...
Qxd5 {[%clk 0:01:05.5]} 38. c6 {[%clk 0:01:17]} 38... Qxc6 {[%clk 0:01:04.3]}
39. g4 {[%clk 0:01:17.5]} 39... Qc3+ {[%clk 0:00:56.3]} 40. Kh4 {[%clk
0:01:14.9]} 40... Qc6 {[%clk 0:00:50.3]} 41. g5 {[%clk 0:01:14.2]} 41... hxg5+
{[%clk 0:00:48.2]} 42. Kxg5 {[%clk 0:01:09.9]} 42... Qh6+ {[%clk 0:00:46.2]} 43.
Kg4 {[%clk 0:01:09.4]} 43... Rd4+ {[%clk 0:00:46.1]} 44. Kf3 {[%clk 0:01:08.9]}
44... Rf4+ {[%clk 0:00:45.9]} 45. Kg3 {[%clk 0:01:07]} 45... Rxf5 {[%clk
0:00:44.9]} 0-1

[Event "*** Titled Tuesday Blitz"]
[Site "Chess.com"]
[Date "2020.11.10"]
[Round "7"]
[White "Infernal_XaM"]
[Black "NikolaGry"]
[Result "1-0"]
[WhiteElo "2830"]
[BlackElo "2635"]
[TimeControl "180+1"]
[EndTime "11:21:01 PST"]
[Termination "Infernal_XaM won by resignation"]

1. d4 {[%clk 0:03:00.9]} 1... d5 {[%clk 0:02:58.9]} 2. c4 {[%clk 0:03:01.8]}
2... Nc6 {[%clk 0:02:59.1]} 3. Nf3 {[%clk 0:03:02.6]} 3... Bg4 {[%clk
0:02:58.6]} 4. Nc3 {[%clk 0:03:02.2]} 4... e6 {[%clk 0:02:58.4]} 5. cxd5 {[%clk
0:03:01.9]} 5... exd5 {[%clk 0:02:58.4]} 6. Bf4 {[%clk 0:03:01.9]} 6... Bd6
{[%clk 0:02:58.6]} 7. Bg3 {[%clk 0:03:00.1]} 7... Nge7 {[%clk 0:02:57.7]} 8. e3
{[%clk 0:03:00.3]} 8... O-O {[%clk 0:02:57.2]} 9. Bd3 {[%clk 0:03:00.3]} 9... h6
{[%clk 0:02:41.4]} 10. O-O {[%clk 0:02:56.3]} 10... f5 {[%clk 0:02:29.6]} 11.
Nb5 {[%clk 0:02:49.3]} 11... f4 {[%clk 0:02:20.9]} 12. exf4 {[%clk 0:02:39.7]}
12... Bxf4 {[%clk 0:02:17.2]} 13. Bxf4 {[%clk 0:02:29.2]} 13... Rxf4 {[%clk
0:02:16.5]} 14. Qd2 {[%clk 0:02:29.6]} 14... Rxf3 {[%clk 0:01:30.8]} 15. gxf3
{[%clk 0:02:29]} 15... Bh3 {[%clk 0:01:30.8]} 16. Rfe1 {[%clk 0:02:22.5]} 16...
a6 {[%clk 0:01:28]} 17. Nc3 {[%clk 0:02:22]} 17... Nxd4 {[%clk 0:01:20.3]} 18.
Qf4 {[%clk 0:02:18.2]} 18... Nef5 {[%clk 0:01:11.2]} 19. Bf1 {[%clk 0:01:54]}
19... Bxf1 {[%clk 0:01:03.3]} 20. Kxf1 {[%clk 0:01:54.1]} 20... c6 {[%clk
0:00:57.5]} 21. Rad1 {[%clk 0:01:52]} 21... Qf6 {[%clk 0:00:52.8]} 22. Ne4
{[%clk 0:01:43.6]} 22... Qg6 {[%clk 0:00:38.2]} 23. Ng3 {[%clk 0:01:43]} 23...
Rf8 {[%clk 0:00:35.5]} 24. Qg4 {[%clk 0:01:40.6]} 24... Qf6 {[%clk 0:00:24.4]}
25. Nh5 {[%clk 0:01:39.5]} 25... Qg5 {[%clk 0:00:24.5]} 26. Re5 {[%clk
0:01:25.9]} 26... Nxf3 {[%clk 0:00:20]} 27. Qxf3 {[%clk 0:01:22.1]} 27... Qg6
{[%clk 0:00:16.9]} 28. Nf4 {[%clk 0:01:15.6]} 28... Qf7 {[%clk 0:00:13.1]} 29.
Ne6 {[%clk 0:01:05.1]} 29... Re8 {[%clk 0:00:12.8]} 30. Qxf5 {[%clk 0:01:04.6]}
30... Qxf5 {[%clk 0:00:12.8]} 31. Rxf5 {[%clk 0:01:05]} 31... Rxe6 {[%clk
0:00:13.4]} 32. Re1 {[%clk 0:01:05.2]} 1-0

[Event "*** Titled Tuesday Blitz"]
[Site "Chess.com"]
[Date "2020.11.10"]
[Round "7"]
[White "Piotrek1979"]
[Black "Fy_Rakotomaharo"]
[Result "0-1"]
[WhiteElo "2457"]
[BlackElo "2632"]
[TimeControl "180+1"]
[EndTime "11:21:01 PST"]
[Termination "Fy_Rakotomaharo won by resignation"]

1. Nf3 {[%clk 0:03:00.9]} 1... c6 {[%clk 0:03:00.9]} 2. e4 {[%clk 0:02:58.7]}
2... d5 {[%clk 0:03:00.5]} 3. Nc3 {[%clk 0:02:59.1]} 3... Bg4 {[%clk 0:02:59.4]}
4. h3 {[%clk 0:02:58.1]} 4... Bxf3 {[%clk 0:02:59.9]} 5. Qxf3 {[%clk 0:02:58]}
5... e6 {[%clk 0:03:00.8]} 6. g3 {[%clk 0:02:57.7]} 6... Nd7 {[%clk 0:03:00.4]}
7. Bg2 {[%clk 0:02:57.9]} 7... Ngf6 {[%clk 0:03:00.9]} 8. O-O {[%clk 0:02:55.3]}
8... Bc5 {[%clk 0:03:00.2]} 9. d3 {[%clk 0:02:53.7]} 9... O-O {[%clk 0:02:59.9]}
10. Qe2 {[%clk 0:02:53.5]} 10... a5 {[%clk 0:02:59]} 11. a4 {[%clk 0:02:50]}
11... Qb6 {[%clk 0:02:57.5]} 12. Kh2 {[%clk 0:02:47.6]} 12... Rad8 {[%clk
0:02:54.4]} 13. e5 {[%clk 0:02:45.5]} 13... Ne8 {[%clk 0:02:54.6]} 14. Bd2
{[%clk 0:02:21.4]} 14... Nc7 {[%clk 0:02:53.1]} 15. f4 {[%clk 0:02:19.9]} 15...
Rde8 {[%clk 0:02:50.5]} 16. Rab1 {[%clk 0:02:13.9]} 16... f6 {[%clk 0:02:50.2]}
17. Na2 {[%clk 0:01:41.5]} 17... fxe5 {[%clk 0:02:39.4]} 18. b4 {[%clk 0:01:39]}
18... axb4 {[%clk 0:02:38.2]} 19. Nxb4 {[%clk 0:01:39.9]} 19... Qa7 {[%clk
0:02:24.8]} 20. fxe5 {[%clk 0:01:38.3]} 20... Rxf1 {[%clk 0:02:22.3]} 21. Rxf1
{[%clk 0:01:33.7]} 21... Qxa4 {[%clk 0:02:22.1]} 22. Rf4 {[%clk 0:01:17.7]}
22... Qa1 {[%clk 0:02:15.3]} 23. Rf1 {[%clk 0:00:33.6]} 23... Qxe5 {[%clk
0:02:03.1]} 24. Qg4 {[%clk 0:00:22.4]} 24... Nf6 {[%clk 0:01:53.7]} 25. Qh4
{[%clk 0:00:22.2]} 25... Bxb4 {[%clk 0:01:46.2]} 26. Bxb4 {[%clk 0:00:21.6]}
26... d4 {[%clk 0:01:40.8]} 27. Bd2 {[%clk 0:00:21.1]} 27... Ncd5 {[%clk
0:01:40.4]} 28. Bg5 {[%clk 0:00:20.4]} 28... h6 {[%clk 0:01:36.9]} 29. Bxh6
{[%clk 0:00:19]} 29... gxh6 {[%clk 0:01:37.8]} 30. Qxh6 {[%clk 0:00:19.6]} 30...
Re7 {[%clk 0:01:16.3]} 31. Be4 {[%clk 0:00:17.8]} 31... Rg7 {[%clk 0:01:13.9]}
32. Bg6 {[%clk 0:00:16.5]} 32... Qe2+ {[%clk 0:01:09.5]} 33. Kg1 {[%clk
0:00:16.7]} 33... Ne3 {[%clk 0:01:09.7]} 34. Rf2 {[%clk 0:00:16.7]} 34... Qe1+
{[%clk 0:01:09]} 0-1

[Event "*** Titled Tuesday Blitz"]
[Site "Chess.com"]
[Date "2020.11.10"]
[Round "7"]
[White "indfraeng"]
[Black "IMRosen"]
[Result "1-0"]
[WhiteElo "2409"]
[BlackElo "2554"]
[TimeControl "180+1"]
[EndTime "11:21:02 PST"]
[Termination "indfraeng won on time"]

1. d4 {[%clk 0:03:00.9]} 1... e5 {[%clk 0:02:48.2]} 2. dxe5 {[%clk 0:02:59.4]}
2... Bc5 {[%clk 0:02:48.9]} 3. Nf3 {[%clk 0:02:52.2]} 3... d6 {[%clk 0:02:49.6]}
4. e3 {[%clk 0:02:48.4]} 4... Ne7 {[%clk 0:02:50.5]} 5. exd6 {[%clk 0:02:38.1]}
5... Bxd6 {[%clk 0:02:51.4]} 6. b3 {[%clk 0:02:37.6]} 6... Bg4 {[%clk
0:02:43.4]} 7. Bb2 {[%clk 0:02:34.7]} 7... Bb4+ {[%clk 0:02:42.8]} 8. c3 {[%clk
0:02:27.4]} 8... Bd6 {[%clk 0:02:42.8]} 9. Nbd2 {[%clk 0:02:24.1]} 9... Nbc6
{[%clk 0:02:34]} 10. h3 {[%clk 0:02:23.7]} 10... Bh5 {[%clk 0:02:34]} 11. Be2
{[%clk 0:02:23.6]} 11... Nd5 {[%clk 0:01:29.5]} 12. c4 {[%clk 0:01:47.3]} 12...
Nf6 {[%clk 0:01:29.7]} 13. O-O {[%clk 0:01:45.8]} 13... Qe7 {[%clk 0:01:22.9]}
14. Nd4 {[%clk 0:01:29.9]} 14... Bxe2 {[%clk 0:01:10.6]} 15. Qxe2 {[%clk
0:01:26.9]} 15... Nxd4 {[%clk 0:00:57.9]} 16. Bxd4 {[%clk 0:01:27.8]} 16...
O-O-O {[%clk 0:00:43.8]} 17. Qf3 {[%clk 0:01:25.4]} 17... Rhg8 {[%clk
0:00:30.4]} 18. Rac1 {[%clk 0:01:20.8]} 18... Be5 {[%clk 0:00:24.2]} 19. Qf5+
{[%clk 0:01:16.2]} 19... Kb8 {[%clk 0:00:08.5]} 20. Nf3 {[%clk 0:01:04.7]} 20...
Bd6 {[%clk 0:00:06.6]} 21. c5 {[%clk 0:01:03.3]} 21... g6 {[%clk 0:00:03.1]} 22.
Qxf6 {[%clk 0:01:00.3]} 22... Bxc5 {[%clk 0:00:01.7]} 23. Rxc5 {[%clk
0:00:58.1]} 23... Qd7 {[%clk 0:00:01.4]} 24. Ne5 {[%clk 0:00:56.5]} 1-0

[Event "*** Titled Tuesday Blitz"]
[Site "Chess.com"]
[Date "2020.11.10"]
[Round "7"]
[White "Obito24"]
[Black "andriipalchuk"]
[Result "1-0"]
[WhiteElo "2576"]
[BlackElo "2438"]
[TimeControl "180+1"]
[EndTime "11:21:03 PST"]
[Termination "Obito24 won by resignation"]

1. d4 {[%clk 0:03:00.9]} 1... Nf6 {[%clk 0:02:59.4]} 2. c4 {[%clk 0:03:01.1]}
2... e6 {[%clk 0:03:00]} 3. Nf3 {[%clk 0:03:00.9]} 3... d5 {[%clk 0:03:00.1]} 4.
cxd5 {[%clk 0:03:00.9]} 4... exd5 {[%clk 0:02:58.5]} 5. Bg5 {[%clk 0:02:59.6]}
5... Bb4+ {[%clk 0:02:54.5]} 6. Nbd2 {[%clk 0:02:59.1]} 6... c5 {[%clk
0:02:51.8]} 7. e3 {[%clk 0:02:58]} 7... Nc6 {[%clk 0:02:51.4]} 8. Bd3 {[%clk
0:02:55.1]} 8... h6 {[%clk 0:02:50.4]} 9. Bh4 {[%clk 0:02:54.8]} 9... g5 {[%clk
0:02:22.3]} 10. Bg3 {[%clk 0:02:54.3]} 10... g4 {[%clk 0:01:50.3]} 11. Ne5
{[%clk 0:02:50.7]} 11... cxd4 {[%clk 0:01:42.9]} 12. O-O {[%clk 0:02:39.6]}
12... dxe3 {[%clk 0:01:12.8]} 13. fxe3 {[%clk 0:02:38]} 13... Be7 {[%clk
0:01:00]} 14. Kh1 {[%clk 0:01:58.6]} 14... Be6 {[%clk 0:00:51.6]} 15. Bb5 {[%clk
0:01:50.1]} 15... Qb6 {[%clk 0:00:51.2]} 16. Qa4 {[%clk 0:01:47.6]} 16... Nd7
{[%clk 0:00:37.7]} 17. Nxc6 {[%clk 0:01:30.2]} 17... Nc5 {[%clk 0:00:37.3]} 18.
Qd4 {[%clk 0:01:20.2]} 18... Qxb5 {[%clk 0:00:27.6]} 19. Qxh8+ {[%clk 0:01:16]}
19... Bf8 {[%clk 0:00:27.5]} 20. Nd4 {[%clk 0:01:07.8]} 20... Qxb2 {[%clk
0:00:27.3]} 21. Bd6 {[%clk 0:00:53.5]} 21... Kd7 {[%clk 0:00:20.9]} 22. Bxc5
{[%clk 0:00:51.8]} 22... Qxd2 {[%clk 0:00:11.7]} 23. Bxf8 {[%clk 0:00:48.4]}
23... Qxe3 {[%clk 0:00:10.9]} 1-0